bitfinex/quotes_BTCUSD_20250523
["timestamp","ask_amount","ask_price","bid_price","bid_amount"]
[1748022865466,0.18274853,109440.0,109430.0,1.56268733]
[1748022866107,0.18274853,109440.0,109430.0,1.37078401]
[1748022866786,0.18274853,109440.0,109430.0,1.38166998]
[1748022867007,0.20384853,109440.0,109430.0,1.38166998]
[1748022868363,0.22544853,109440.0,109430.0,1.38166998]
[1748022869317,0.22544853,109440.0,109430.0,1.56443521]
[1748022869762,0.22544853,109440.0,109430.0,1.57357347]
[1748022871754,0.22544853,109440.0,109430.0,1.38166998]
[1748022871947,0.22544853,109440.0,109430.0,1.38134998]
[1748022873794,0.31499409,109440.0,109430.0,1.37046401]
[1748022878179,0.22544853,109440.0,109430.0,1.55322924]
[1748022878371,0.22544853,109440.0,109430.0,1.580643]
[1748022878372,0.01827459,109440.0,109430.0,1.580643]
[1748022878571,0.21016012,109440.0,109430.0,1.580643]
[1748022878772,0.21929754,109440.0,109430.0,1.57150533]
[1748022878975,0.21016054,109440.0,109430.0,1.57150533]
[1748022879642,0.20102329,109440.0,109430.0,1.56236741]
[1748022879837,0.20102329,109440.0,109430.0,1.37046401]
[1748022879838,0.21388595,109440.0,109430.0,1.37046401]
[1748022880045,0.21388595,109440.0,109430.0,1.5623675]
[1748022880750,0.23428595,109440.0,109430.0,1.37046401]
[1748022881181,0.32383151,109440.0,109430.0,1.37046401]
[1748022883354,0.32383151,109440.0,109430.0,0.74434401]
[1748022883557,0.32383151,109440.0,109430.0,1.37046401]
[1748022886153,0.32383151,109440.0,109430.0,0.97634401]
[1748022887441,0.21388595,109440.0,109430.0,1.15910924]
[1748022887643,0.19188595,109440.0,109430.0,0.97634401]
[1748022888574,0.19188595,109440.0,109430.0,1.15910924]
[1748022888750,0.18274853,109440.0,109430.0,0.97634401]
[1748022889178,0.18274853,109440.0,109430.0,1.15910924]
[1748022889569,0.18274853,109440.0,109430.0,1.16824733]
[1748022889570,0.21929705,109440.0,109430.0,1.16824733]
[1748022889812,0.2284343,109440.0,109430.0,1.18652309]
[1748022890015,0.21929746,109440.0,109430.0,1.17738525]
[1748022890296,0.21929746,109440.0,109430.0,1.18652309]
[1748022890541,0.21929746,109440.0,109430.0,1.19566085]
[1748022891034,0.21929746,109440.0,109430.0,1.18652309]
[1748022891211,0.21929746,109440.0,109430.0,1.19566085]
[1748022891413,0.21929746,109440.0,109430.0,1.18652309]
[1748022892158,0.21016037,109440.0,109430.0,0.97634401]
[1748022892289,0.23408595,109440.0,109430.0,1.16824733]
[1748022892690,0.23408595,109440.0,109430.0,1.1682475]
[1748022892884,0.23408595,109440.0,109430.0,1.17738559]
[1748022893314,0.22494853,109440.0,109430.0,1.1682475]
[1748022893781,0.05133725,109440.0,109430.0,1.18652359]
[1748022893900,0.21016012,109440.0,109430.0,1.19566126]
[1748022894101,0.21929754,109440.0,109430.0,1.19566135]
[1748022894600,0.20324426,109460.0,109440.0,0.5501598]
[1748022894601,0.22524426,109460.0,109440.0,0.5501598]
[1748022894741,0.22524426,109460.0,109450.0,1.15798826]
[1748022894742,0.33306107,109460.0,109450.0,1.15798826]
[1748022895094,0.33306107,109460.0,109450.0,0.96612]
[1748022895095,0.32392557,109460.0,109450.0,0.96612]
[1748022895913,0.32392557,109460.0,109450.0,0.99376679]
[1748022896321,0.32492557,109460.0,109450.0,0.99376679]
[1748022896523,0.32692557,109460.0,109450.0,1.00248377]
[1748022896683,0.32592557,109460.0,109450.0,1.00248377]
[1748022896888,0.32792557,109460.0,109450.0,1.00248377]
[1748022897691,0.23838001,109460.0,109450.0,1.18521561]
[1748022897898,0.23838001,109460.0,109450.0,1.00248377]
[1748022898256,0.19588001,109460.0,109450.0,1.20348862]
[1748022898955,0.21628001,109460.0,109450.0,1.1943522]
[1748022899137,0.21428001,109460.0,109450.0,1.1943522]
[1748022899334,0.21428001,109460.0,109450.0,1.00248377]
[1748022899335,0.20514426,109460.0,109450.0,1.00248377]
[1748022899538,0.22254426,109460.0,109450.0,1.18521561]
[1748022899723,0.22254426,109460.0,109450.0,1.19435211]
[1748022899926,0.22354426,109460.0,109450.0,1.19435211]
[1748022900897,0.22354426,109460.0,109450.0,1.00248377]
[1748022901105,0.22354426,109460.0,109450.0,1.1943522]
[1748022901724,0.22354426,109460.0,109450.0,1.5886322]
[1748022902314,0.22354426,109460.0,109450.0,1.39676377]
[1748022902991,0.22354426,109460.0,109450.0,1.57949561]
[1748022903202,0.22354426,109460.0,109450.0,1.39676377]
[1748022903404,0.22354426,109460.0,109450.0,1.12292377]
[1748022903405,0.31308982,109460.0,109450.0,1.12292377]
[1748022903620,0.31308982,109460.0,109450.0,1.39676377]
[1748022904029,0.31308982,109460.0,109450.0,0.76192679]
[1748022904157,0.31308982,109460.0,109450.0,1.38776679]
[1748022908397,0.31308982,109460.0,109450.0,1.3964752]
[1748022909424,0.31308982,109460.0,109450.0,1.3964352]
[1748022909730,0.31308982,109460.0,109450.0,0.7706352]
[1748022909932,0.31308982,109460.0,109450.0,1.38772679]
[1748022912877,0.001,109460.0,109450.0,1.57959522]
[1748022913033,0.02840601,109460.0,109450.0,1.64930397]
[1748022913611,0.2202569,109460.0,109450.0,1.65801091]
[1748022913770,0.2202569,109460.0,109450.0,1.65801108]
[1748022913976,0.2202569,109460.0,109450.0,1.61571125]
[1748022914185,0.2202569,109460.0,109450.0,1.62484742]
[1748022914361,0.2202569,109460.0,109450.0,1.42435853]
[1748022915229,0.2202569,109460.0,109450.0,1.28484692]
[1748022916373,0.2202569,109460.0,109450.0,1.62484692]
[1748022916602,0.02840601,109460.0,109450.0,1.66484642]
[1748022916800,0.03754168,109460.0,109450.0,1.66484642]
[1748022917066,0.03754168,109460.0,109450.0,1.62484642]
[1748022917699,0.22025682,109460.0,109450.0,1.62484642]
[1748022918402,0.22025682,109460.0,109450.0,1.35104642]
[1748022918634,0.22939257,109460.0,109450.0,1.62484642]
[1748022919929,0.22939257,109460.0,109450.0,1.59719963]
[1748022920330,0.22025749,109460.0,109450.0,1.56065537]
[1748022920487,0.22025749,109460.0,109450.0,1.57892813]
[1748022920488,0.24085749,109460.0,109450.0,1.57892813]
[1748022921030,0.22025749,109460.0,109450.0,1.5880643]
[1748022924300,0.01927093,109460.0,109450.0,1.59720039]
[1748022924472,0.21112174,109460.0,109450.0,1.5971998]
[1748022924705,0.22025749,109460.0,109450.0,1.5971998]
[1748022925557,0.01927051,109460.0,109450.0,1.6373998]
[1748022925970,0.01927042,109460.0,109450.0,1.6373998]
[1748022926393,0.02840576,109460.0,109450.0,1.6373998]
[1748022926722,0.001,109460.0,109450.0,1.6373998]
[1748022926931,0.001,109460.0,109450.0,1.74148621]
[1748022927145,0.001,109460.0,109450.0,1.76542975]
[1748022927312,0.001,109460.0,109450.0,1.77987713]
[1748022927522,0.00913417,109470.0,109460.0,0.2531214]
[1748022927715,0.01826859,109470.0,109460.0,0.2531214]
[1748022927915,0.02740317,109470.0,109460.0,0.2531214]
[1748022928129,0.01826859,109470.0,109460.0,0.2531214]
[1748022928348,0.0182685,109470.0,109460.0,0.2531214]
[1748022928543,0.02740308,109470.0,109460.0,0.2531214]
[1748022928762,0.0192685,109470.0,109460.0,0.2531214]
[1748022929073,0.02840292,109470.0,109460.0,0.27269644]
[1748022929982,0.01013417,109470.0,109460.0,0.27269644]
[1748022930228,0.01926859,109470.0,109460.0,0.27269644]
[1748022930403,0.02840284,109470.0,109460.0,0.27269644]
[1748022930601,0.01926842,109470.0,109460.0,0.61269644]
[1748022930835,0.02840284,109470.0,109460.0,0.61269644]
[1748022931510,0.01926842,109470.0,109460.0,0.64008944]
[1748022931757,0.01013425,109470.0,109460.0,0.64008944]
[1748022932009,0.01926867,109470.0,109460.0,0.64008944]
[1748022933040,0.01013425,109470.0,109460.0,0.64008944]
[1748022933255,0.001,109470.0,109460.0,0.64008944]
[1748022933677,0.01013433,109470.0,109460.0,0.64008944]
[1748022934701,0.01013433,109470.0,109460.0,0.58795427]
[1748022934702,0.21110203,109470.0,109460.0,0.58795427]
[1748022934899,0.22023686,109470.0,109460.0,0.60622503]
[1748022935125,0.22023686,109470.0,109460.0,0.6153602]
[1748022935357,0.22937178,109470.0,109460.0,0.60622503]
[1748022935560,0.22937178,109470.0,109460.0,0.67236804]
[1748022935561,0.28447369,109470.0,109460.0,0.67236804]
[1748022935829,0.2432682,109470.0,109460.0,0.01957504]
[1748022936035,0.33281376,109470.0,109460.0,0.98497504]
[1748022936792,0.33281376,109470.0,109460.0,0.9654]
[1748022936965,0.33281376,109470.0,109460.0,0.6254]
[1748022937623,0.33281376,109470.0,109460.0,0.9654]
[1748022941605,0.33281376,109470.0,109460.0,0.69164]
[1748022941836,0.33281376,109470.0,109460.0,0.62544]
[1748022945038,0.33281376,109470.0,109460.0,0.35168]
[1748022945270,0.23315073,109460.0,109450.0,0.39428]
[1748022945502,0.23315073,109460.0,109450.0,0.74596]
[1748022945503,0.32269629,109460.0,109450.0,0.74596]
[1748022945725,0.32269629,109460.0,109450.0,1.01972]
[1748022946199,0.24228623,109460.0,109450.0,1.01972]
[1748022946431,0.06870634,109460.0,109450.0,1.21158834]
[1748022946659,0.24228623,109460.0,109450.0,1.01972]
[1748022946887,0.23315081,109460.0,109450.0,1.01972]
[1748022947105,0.23315081,109460.0,109450.0,1.21158834]
[1748022947289,0.01827109,109460.0,109450.0,1.56986077]
[1748022947552,0.21012198,109460.0,109450.0,1.56986077]
[1748022947758,0.21012198,109460.0,109450.0,1.5704199]
[1748022947981,0.01827059,109460.0,109450.0,1.58869215]
[1748022948187,0.21925715,109460.0,109450.0,1.58869215]
[1748022948391,0.03654201,109460.0,109450.0,1.58869215]
[1748022948600,0.21925715,109460.0,109450.0,1.62989232]
[1748022948803,0.00913517,109460.0,109450.0,1.61932791]
[1748022949007,0.01827051,109460.0,109450.0,1.61932791]
[1748022949226,0.00913517,109460.0,109450.0,1.61932791]
[1748022949445,0.00913433,109470.0,109460.0,0.21925681]
[1748022949657,0.0182685,109470.0,109460.0,0.55012115]
[1748022949861,0.02740308,109470.0,109460.0,0.55012115]
[1748022950067,0.02740308,109470.0,109460.0,0.55881637]
[1748022950579,0.0182685,109470.0,109460.0,0.55881637]
[1748022950780,0.0192685,109470.0,109460.0,0.55881637]
[1748022951171,0.028403,109470.0,109460.0,0.55881637]
[1748022951371,0.0192685,109470.0,109460.0,0.55881637]
[1748022951574,0.02840275,109470.0,109460.0,0.55881637]
[1748022951713,0.01926842,109470.0,109460.0,0.55881637]
[1748022952143,0.02840284,109470.0,109460.0,0.55881637]
[1748022952952,0.01926859,109470.0,109460.0,0.55881637]
[1748022953357,0.01926859,109470.0,109460.0,0.60031637]
[1748022954572,0.02840317,109470.0,109460.0,0.60031637]
[1748022954866,0.02840317,109470.0,109460.0,0.55881637]
[1748022956097,0.03753792,109470.0,109460.0,0.55881637]
[1748022957365,0.03753784,109470.0,109460.0,0.55881637]
[1748022959698,0.04667267,109470.0,109460.0,0.55881637]
[1748022960114,0.22937112,109470.0,109460.0,0.55881637]
[1748022960749,0.22937187,109470.0,109460.0,0.55881637]
[1748022964168,0.22023745,109470.0,109460.0,0.54968161]
[1748022964387,0.2430682,109470.0,109460.0,0.34869522]
[1748022964611,0.2430682,109470.0,109460.0,0.97377522]
[1748022965044,0.2430682,109470.0,109460.0,0.34869522]
[1748022965241,0.2430682,109470.0,109460.0,0.97377522]
[1748022968726,0.2430682,109470.0,109460.0,1.15649036]
[1748022968928,0.2430682,109470.0,109460.0,1.16562603]
[1748022969130,0.23393337,109470.0,109460.0,1.16562603]
[1748022969327,0.23393337,109470.0,109460.0,0.97377522]
[1748022969328,0.20409845,109470.0,109460.0,0.97377522]
[1748022969533,0.22439845,109470.0,109460.0,0.97377522]
[1748022970442,0.22439845,109470.0,109460.0,1.15649036]
[1748022970650,0.22439845,109470.0,109460.0,0.97377522]
[1748022970827,0.22439845,109470.0,109460.0,0.70001522]
[1748022971030,0.22439845,109470.0,109460.0,0.97377522]
[1748022973672,0.22439845,109470.0,109460.0,0.34869522]
[1748022973882,0.22439845,109470.0,109460.0,0.97381522]
[1748022975021,0.22439845,109470.0,109460.0,1.15653036]
[1748022975233,0.22439845,109470.0,109460.0,0.97381522]
[1748022978921,0.31394401,109470.0,109460.0,0.00869522]
[1748022979136,0.35465216,109470.0,109460.0,0.36005522]
[1748022979353,0.35465216,109470.0,109460.0,0.35136]
[1748022979559,0.36319394,109470.0,109460.0,0.62512]
[1748022979776,0.23275073,109460.0,109450.0,0.39428]
[1748022979987,0.32229629,109460.0,109450.0,0.39428]
[1748022980419,0.32229629,109460.0,109450.0,1.0194]
[1748022980420,0.33083807,109460.0,109450.0,1.0194]
[1748022981055,0.33083807,109460.0,109450.0,1.0204]
[1748022981263,0.33083807,109460.0,109450.0,1.0194]
[1748022982307,0.33083807,109460.0,109450.0,1.01944]
[1748022982512,0.32229629,109460.0,109450.0,1.01944]
[1748022983349,0.32329629,109460.0,109450.0,1.01944]
[1748022984117,0.32329629,109460.0,109450.0,0.74564]
[1748022984328,0.32329629,109460.0,109450.0,1.01944]
[1748022985935,0.32329629,109460.0,109450.0,0.39428]
[1748022985936,0.37389576,109460.0,109450.0,0.39428]
[1748022986140,0.37389576,109460.0,109450.0,1.01948]
[1748022986546,0.32329629,109460.0,109450.0,1.01948]
[1748022988069,0.32329629,109460.0,109450.0,0.39428]
[1748022988276,0.32329629,109460.0,109450.0,1.01948]
[1748022988655,0.32329629,109460.0,109450.0,0.74568]
[1748022988865,0.32329629,109460.0,109430.0,0.3642707]
[1748022988866,0.24152278,109440.0,109430.0,0.0242707]
[1748022989090,0.33106834,109440.0,109430.0,0.62570703]
[1748022989447,0.33106834,109440.0,109430.0,0.00050703]
[1748022989448,0.79517741,109440.0,109430.0,0.00050703]
[1748022990066,1.85592412,109440.0,109430.0,0.00050703]
[1748022990268,0.24295954,109420.0,109410.0,0.7565481]
[1748022990494,0.3778051,109420.0,109410.0,0.7565481]
[1748022990692,0.3778051,109420.0,109410.0,0.74568]
[1748022991170,0.46732661,109420.0,109410.0,0.74568]
[1748022991584,0.20113257,109380.0,109360.0,0.29565139]
[1748022991850,0.01828529,109370.0,109360.0,0.72519695]
[1748022992049,0.01828529,109370.0,109360.0,1.18892557]
[1748022992250,0.02742814,109370.0,109360.0,1.18892557]
[1748022992722,0.20115145,109370.0,109360.0,0.45696056]
[1748022993008,0.20115145,109370.0,109360.0,0.64634536]
[1748022993450,0.20115145,109370.0,109360.0,0.65334536]
[1748022993451,0.20215145,109370.0,109360.0,0.65334536]
[1748022993656,0.20215145,109370.0,109360.0,0.99334536]
[1748022993866,0.20115145,109370.0,109360.0,0.99334536]
[1748022994096,0.20115145,109370.0,109360.0,0.99034536]
[1748022994336,0.20115145,109370.0,109360.0,1.17722758]
[1748022994530,0.18284878,109380.0,109370.0,0.21029456]
[1748022994742,0.20112998,109390.0,109380.0,0.34914243]
[1748022994952,0.19198863,109390.0,109380.0,0.96504]
[1748022996248,0.21378863,109390.0,109380.0,0.96504]
[1748022996449,0.32443419,109390.0,109380.0,1.08552]
[1748022996661,0.32443419,109390.0,109380.0,1.3594]
[1748022996903,0.19198863,109390.0,109380.0,1.3594]
[1748022997096,0.19198863,109390.0,109380.0,1.3604]
[1748022997545,0.23488863,109390.0,109380.0,1.3604]
[1748022997721,0.32443419,109390.0,109380.0,1.08652]
[1748022997962,0.32443419,109390.0,109380.0,1.36044]
[1748022998358,0.32443419,109390.0,109380.0,1.36144]
[1748022998718,0.32443419,109390.0,109380.0,0.73636]
[1748022998924,0.32443419,109390.0,109380.0,1.02148]
[1748023002185,0.66443419,109390.0,109380.0,1.02148]
[1748023003688,0.66443419,109390.0,109380.0,1.02048]
[1748023004087,0.66443419,109390.0,109380.0,1.01948]
[1748023006597,0.66443419,109390.0,109380.0,1.01952]
[1748023007890,0.74916325,109390.0,109380.0,1.01952]
[1748023008143,0.66443419,109390.0,109380.0,1.01952]
[1748023008355,0.32443419,109390.0,109380.0,1.01952]
[1748023009392,0.32443419,109390.0,109380.0,0.74556]
[1748023009630,0.24345145,109370.0,109360.0,0.37270536]
[1748023009814,0.33299701,109370.0,109360.0,0.62547202]
[1748023011072,0.33299701,109370.0,109360.0,0.62747202]
[1748023011986,0.33299701,109370.0,109360.0,0.63047202]
[1748023015381,0.33299701,109370.0,109360.0,0.63915883]
[1748023016312,0.33299701,109370.0,109360.0,0.63919883]
[1748023016734,0.33299701,109370.0,109360.0,0.28787883]
[1748023018311,0.33299701,109370.0,109360.0,0.01383883]
[1748023018511,0.33299701,109370.0,109360.0,0.28787883]
[1748023018716,0.33299701,109370.0,109360.0,0.01383883]
[1748023018915,0.42058778,109370.0,109360.0,0.01383883]
[1748023019204,0.41609678,109370.0,109360.0,0.01383883]
[1748023019624,0.41609678,109370.0,109360.0,0.28787883]
[1748023019849,0.41609678,109370.0,109360.0,0.01383883]
[1748023020052,0.41609678,109370.0,109360.0,0.28787883]
[1748023020053,0.32850601,109370.0,109360.0,0.28787883]
[1748023020668,0.32850601,109370.0,109360.0,0.28587883]
[1748023020996,0.32850601,109370.0,109360.0,0.28387883]
[1748023021202,0.32850601,109370.0,109360.0,0.28487883]
[1748023022566,0.37177063,109370.0,109360.0,0.28487883]
[1748023022988,0.32850601,109370.0,109360.0,0.28487883]
[1748023027700,0.32850601,109370.0,109360.0,0.01083883]
[1748023027905,0.32850601,109370.0,109360.0,0.28491883]
[1748023030689,0.57850601,109370.0,109360.0,0.28491883]
[1748023033138,0.57850601,109370.0,109360.0,0.01083883]
[1748023033293,0.66802752,109370.0,109360.0,0.00983883]
[1748023033500,0.67002752,109370.0,109360.0,0.00983883]
[1748023033900,0.67002752,109370.0,109360.0,0.00883883]
[1748023034234,0.67202752,109370.0,109360.0,0.00883883]
[1748023035805,0.67202752,109370.0,109360.0,0.00015202]
[1748023038233,0.58250601,109370.0,109360.0,0.00015202]
[1748023042630,0.58250601,109370.0,109360.0,0.0089042]
[1748023043002,0.58250601,109370.0,109360.0,0.2829842]
[1748023043211,0.58250601,109370.0,109360.0,0.27423202]
[1748023046489,0.58250601,109370.0,109360.0,0.00015202]
[1748023046694,1.03463057,109370.0,109360.0,0.00015202]
[1748023047119,1.04463057,109370.0,109360.0,0.00015202]
[1748023047540,1.05463057,109370.0,109360.0,0.00015202]
[1748023049442,0.69458386,109370.0,109360.0,0.00015202]
[1748023049756,0.7134765,109370.0,109360.0,0.00015202]
[1748023050369,0.68458386,109370.0,109360.0,0.00015202]
[1748023050784,1.37428386,109370.0,109360.0,0.00015202]
[1748023051132,1.29674686,109370.0,109360.0,0.00015202]
[1748023051382,0.54020601,109370.0,109360.0,0.00015202]
[1748023051585,0.58660601,109370.0,109360.0,0.27423202]
[1748023051814,0.58660601,109370.0,109360.0,0.00015202]
[1748023052017,0.94665272,109370.0,109360.0,0.00015202]
[1748023052228,1.05071508,109370.0,109360.0,0.00015202]
[1748023053235,0.96119357,109370.0,109360.0,0.00015202]
[1748023053435,0.60114686,109370.0,109360.0,0.00015202]
[1748023054450,0.61114686,109370.0,109360.0,0.00015202]
[1748023055594,0.97119357,109370.0,109360.0,0.00015202]
[1748023056666,1.66089357,109370.0,109360.0,0.00015202]
[1748023056883,1.75041508,109370.0,109360.0,0.00015202]
[1748023057427,1.81146508,109370.0,109360.0,0.00015202]
[1748023058522,1.46050508,109370.0,109360.0,0.00015202]
[1748023058742,2.08558508,109370.0,109360.0,0.00015202]
[1748023058955,1.81146508,109370.0,109360.0,0.00015202]
[1748023062856,1.81150508,109370.0,109360.0,0.00015202]
[1748023063496,1.81150508,109370.0,109360.0,0.31485202]
[1748023067690,1.03566837,109370.0,109360.0,0.31485202]
[1748023067922,0.92660601,109370.0,109360.0,0.31485202]
[1748023068307,0.94114686,109370.0,109360.0,0.31485202]
[1748023069148,0.92660601,109370.0,109360.0,0.31485202]
[1748023069344,0.60114686,109370.0,109360.0,0.31485202]
[1748023070341,1.30619357,109370.0,109360.0,0.31485202]
[1748023070493,1.39571508,109370.0,109360.0,0.31485202]
[1748023070692,1.40571508,109370.0,109360.0,0.31485202]
[1748023070896,1.39571508,109370.0,109360.0,0.31485202]
[1748023071279,1.39371508,109370.0,109360.0,0.31485202]
[1748023071480,1.39171508,109370.0,109360.0,0.31485202]
[1748023071679,1.39471508,109370.0,109360.0,0.31485202]
[1748023071881,1.39771508,109370.0,109360.0,0.31485202]
[1748023072085,1.45250508,109370.0,109360.0,0.31485202]
[1748023073294,1.43796423,109370.0,109360.0,0.31485202]
[1748023074898,1.45250508,109370.0,109360.0,0.31485202]
[1748023076489,1.54856508,109370.0,109360.0,0.31485202]
[1748023076898,1.53402423,109370.0,109360.0,0.31485202]
[1748023077243,1.81972508,109370.0,109360.0,0.12929932]
[1748023077668,1.82072508,109370.0,109360.0,0.12929932]
[1748023077907,1.82472508,109370.0,109360.0,0.12929932]
[1748023078523,1.46467837,109370.0,109360.0,0.12929932]
[1748023078729,1.72866508,109370.0,109360.0,0.12929932]
[1748023078955,1.82472508,109370.0,109360.0,0.12929932]
[1748023079400,1.72866508,109370.0,109360.0,0.12929932]
[1748023079630,1.80554508,109370.0,109360.0,0.12929932]
[1748023080153,0.94560601,109370.0,109360.0,0.12929932]
[1748023080595,0.96014686,109370.0,109360.0,0.12929932]
[1748023080769,1.32019357,109370.0,109360.0,0.12929932]
[1748023082322,0.95514686,109370.0,109360.0,0.12929932]
[1748023082541,0.89874686,109370.0,109360.0,0.12929932]
[1748023082762,0.98826837,109370.0,109360.0,0.12929932]
[1748023082969,0.99826837,109370.0,109360.0,0.12929932]
[1748023083197,0.98826837,109370.0,109360.0,0.12929932]
[1748023083346,1.02026837,109370.0,109360.0,0.12929932]
[1748023083550,1.04186837,109370.0,109360.0,0.12929932]
[1748023085862,1.41191508,109370.0,109360.0,0.12929932]
[1748023086082,0.64826837,109370.0,109360.0,0.12929932]
[1748023086292,0.64826837,109370.0,109360.0,0.17119932]
[1748023086504,0.55874686,109370.0,109360.0,0.17119932]
[1748023089207,0.55874686,109370.0,109360.0,0.12929932]
[1748023091597,0.55874686,109370.0,109360.0,0.17469932]
[1748023092022,0.55874686,109370.0,109360.0,0.12929932]
[1748023093191,0.55874686,109370.0,109360.0,0.15149932]
[1748023094723,0.54420601,109370.0,109360.0,0.15149932]
[1748023094936,0.54869651,109370.0,109360.0,0.53188711]
[1748023095143,0.4500086,109370.0,109360.0,0.51359932]
[1748023095420,0.53955416,109370.0,109360.0,0.53228741]
[1748023095605,0.60284142,109370.0,109360.0,0.19228741]
[1748023095816,0.60284142,109370.0,109360.0,0.79847932]
[1748023096441,0.59884142,109370.0,109360.0,0.79847932]
[1748023096644,0.60084142,109370.0,109360.0,0.79847932]
[1748023097604,0.59684142,109370.0,109360.0,0.81548724]
[1748023097809,0.53355416,109370.0,109360.0,0.81548724]
[1748023098014,0.53555416,109370.0,109360.0,0.81548724]
[1748023098872,0.53555416,109370.0,109360.0,0.54236724]
[1748023099080,0.53555416,109370.0,109360.0,0.81648724]
[1748023099907,0.53555416,109370.0,109360.0,0.79947932]
[1748023101496,0.53555416,109370.0,109360.0,0.79943932]
[1748023109871,0.53555416,109370.0,109360.0,1.13943932]
[1748023111126,0.4460086,109370.0,109360.0,1.13943932]
[1748023111759,0.46429472,109370.0,109360.0,1.32232154]
[1748023111948,0.45515187,109370.0,109360.0,1.32232154]
[1748023112155,0.45515187,109370.0,109360.0,0.67047366]
[1748023112366,0.45315187,109370.0,109360.0,0.67047366]
[1748023112566,0.45315187,109370.0,109360.0,0.66232955]
[1748023113408,0.45315187,109370.0,109360.0,0.93640955]
[1748023113749,0.45115187,109370.0,109360.0,0.93640955]
[1748023114165,0.45115187,109370.0,109360.0,0.93740955]
[1748023115161,0.45115187,109370.0,109360.0,0.96260955]
[1748023117344,0.45115187,109370.0,109360.0,0.95960955]
[1748023121951,0.45115187,109370.0,109360.0,1.35420955]
[1748023124045,0.45115187,109370.0,109360.0,1.54623588]
[1748023124258,0.25,109370.0,109360.0,1.57366719]
[1748023124471,0.25,109370.0,109360.0,1.66321275]
[1748023124682,0.25,109370.0,109360.0,1.03869275]
[1748023124889,0.25,109370.0,109360.0,1.66309275]
[1748023125521,0.25,109370.0,109360.0,1.67302212]
[1748023125736,0.25,109370.0,109360.0,1.67202212]
[1748023126222,0.251,109370.0,109360.0,1.69056297]
[1748023126431,0.02742304,109390.0,109380.0,0.23547508]
[1748023126642,0.03656422,109390.0,109380.0,0.85983508]
[1748023126849,0.04570565,109390.0,109380.0,0.85983508]
[1748023127497,0.04570623,109390.0,109380.0,0.85983508]
[1748023127818,0.04570623,109390.0,109380.0,0.86855995]
[1748023128035,0.21939728,109390.0,109380.0,0.84113365]
[1748023128315,0.21025618,109390.0,109380.0,0.86041827]
[1748023128485,0.21025618,109390.0,109380.0,0.86956045]
[1748023128699,0.21025618,109390.0,109380.0,0.88784457]
[1748023129011,0.21025618,109390.0,109380.0,0.88784415]
[1748023129294,0.02742412,109390.0,109380.0,0.88784415]
[1748023129505,0.02742412,109390.0,109380.0,0.88784373]
[1748023129706,0.21939778,109390.0,109380.0,0.86041826]
[1748023129908,0.21939778,109390.0,109380.0,0.87870221]
[1748023130731,0.01828261,109390.0,109380.0,0.88784406]
[1748023131332,0.21025627,109390.0,109380.0,0.87870221]
[1748023131907,0.22808119,109390.0,109380.0,0.00972487]
[1748023132120,0.24361509,109390.0,109380.0,1.02856487]
[1748023132326,0.24361509,109390.0,109380.0,1.36856487]
[1748023132753,0.24361509,109390.0,109380.0,1.35984]
[1748023133003,0.24361509,109390.0,109380.0,0.73552]
[1748023133228,0.33316065,109390.0,109380.0,0.73552]
[1748023133441,0.33316065,109390.0,109380.0,1.35984]
[1748023134345,0.33316065,109390.0,109380.0,0.74584]
[1748023134574,0.33316065,109390.0,109380.0,1.01984]
[1748023135805,0.33316065,109390.0,109380.0,0.39552]
[1748023136013,0.38476236,109390.0,109380.0,1.01984]
[1748023136427,0.33316065,109390.0,109380.0,1.01984]
[1748023137050,0.33316065,109390.0,109380.0,1.01884]
[1748023138286,0.33516065,109390.0,109380.0,1.01884]
[1748023139705,0.33516065,109390.0,109380.0,0.74484]
[1748023139911,0.33516065,109390.0,109380.0,1.01884]
[1748023141558,0.33516065,109390.0,109380.0,0.74484]
[1748023141780,0.38696236,109390.0,109380.0,0.74484]
[1748023142304,0.33516065,109390.0,109380.0,0.74484]
[1748023143897,0.33516065,109390.0,109380.0,0.35032]
[1748023144733,0.33316065,109390.0,109380.0,0.35032]
[1748023144933,0.33516065,109390.0,109380.0,0.35032]
[1748023145530,0.2267655,109370.0,109350.0,0.19204332]
[1748023145776,0.31631106,109370.0,109360.0,0.35008]
[1748023146891,0.31631106,109370.0,109360.0,0.62412]
[1748023148933,0.31631106,109370.0,109360.0,0.62512]
[1748023150328,0.31631106,109370.0,109360.0,0.62612]
[1748023150738,0.31631106,109370.0,109360.0,0.80900222]
[1748023150976,0.20113323,109380.0,109370.0,0.20115162]
[1748023151152,0.21027566,109380.0,109370.0,0.1920086]
[1748023151452,0.0091431,109370.0,109360.0,1.2053327]
[1748023151677,0.01828612,109370.0,109360.0,1.19618935]
[1748023151928,0.01828612,109370.0,109360.0,1.19518935]
[1748023152133,0.02742931,109370.0,109360.0,1.19518935]
[1748023152309,0.02742889,109370.0,109360.0,1.19518935]
[1748023152485,0.02742847,109370.0,109360.0,1.19518935]
[1748023152885,0.03657157,109370.0,109360.0,1.19518935]
[1748023153581,0.22858034,109370.0,109360.0,1.21305921]
[1748023153864,0.22858034,109370.0,109360.0,0.57979561]
[1748023154070,0.21029489,109370.0,109360.0,1.19477192]
[1748023154276,0.21029489,109370.0,109360.0,1.19577192]
[1748023154486,0.21029489,109370.0,109360.0,1.20491578]
[1748023155273,0.20115187,109370.0,109360.0,1.19311578]
[1748023156143,0.20115187,109370.0,109360.0,1.17601578]
[1748023156317,0.19200877,109370.0,109360.0,1.36940576]
[1748023156550,0.19200877,109370.0,109360.0,1.55228798]
[1748023156961,0.19200877,109370.0,109360.0,1.56143209]
[1748023157180,0.19200877,109370.0,109360.0,1.57057611]
[1748023158791,0.1828655,109370.0,109360.0,1.57057611]
[1748023159622,0.1828655,109370.0,109360.0,1.56143209]
[1748023160874,0.1828655,109370.0,109360.0,1.09536576]
[1748023161105,0.2275655,109370.0,109360.0,0.74528576]
[1748023161321,0.2275655,109370.0,109360.0,0.40528576]
[1748023161322,0.31711106,109370.0,109360.0,0.40528576]
[1748023161528,0.31711106,109370.0,109360.0,1.02936576]
[1748023161727,0.31711106,109370.0,109360.0,1.36936576]
[1748023161863,0.31711106,109370.0,109360.0,1.36064]
[1748023163787,0.31711106,109370.0,109360.0,0.73656]
[1748023164073,0.31711106,109370.0,109360.0,1.36064]
[1748023164277,0.31811106,109370.0,109360.0,1.36064]
[1748023164709,0.31811106,109370.0,109360.0,1.36068]
[1748023164910,0.31811106,109370.0,109360.0,0.74664]
[1748023165086,0.37273704,109370.0,109360.0,0.39656]
[1748023165288,0.37273704,109370.0,109360.0,1.02068]
[1748023165600,0.31811106,109370.0,109360.0,1.02068]
[1748023169705,0.31811106,109370.0,109360.0,0.62612]
[1748023170021,0.56811106,109370.0,109360.0,0.62612]
[1748023172697,0.56811106,109370.0,109360.0,0.35208]
[1748023172899,0.56811106,109370.0,109360.0,0.62612]
[1748023173073,0.64773704,109370.0,109360.0,0.62612]
[1748023175329,0.64773704,109370.0,109360.0,0.002]
[1748023175527,0.64773704,109370.0,109360.0,0.62584]
[1748023178315,0.56811106,109370.0,109360.0,0.62584]